[Event "4NCL 2022-2023"]
[Site "Daventry"]
[Date "2023.01.15"]
[Round "4.19"]
[White "Derakhshani, Borna"]
[Black "Roberson, Peter T"]
[Result "0-1"]
[ECO "A12"]
[WhiteElo "2400"]
[BlackElo "2419"]
[Annotator "TA"]
[PlyCount "132"]
[EventDate "2022.10.20"]
[EventType "team-tourn"]
[EventCountry "ENG"]
[SourceTitle "playchess.com"]
[Source "ChessBase"]
[SourceQuality "1"]
[TimeControl "40/6000+30:2400+30"]

{[%evp 25,132,-23,-11,-18,20,13,25,11,24,-18,12,6,15,12,18,9,0,0,36,14,24,18,18,14,12,19,23,12,19,19,9,-20,-15,-22,-17,-20,-6,-18,8,0,0,0,0,-34,0,-14,0,-1,-4,-37,-37,-37,-37,-41,-41,-45,-6,-63,-58,-191,-66,-66,-39,-70,0,0,0,0,0,0,0,0,0,0,0,0,7,-1525,-1487,-1293,-1266,-2104,-1915,-1817,-1540,-3550,-992,-29970,-29971,-29971,-29972,-29972,-29973,-29973,-29974,-29973,-29975,-29975,-29976,-29977,-29977,-29977,-29978,-29978,-29970,-29978,-29979,-29978,-29978]} 1. Nf3 {[%emt 0:09:27]} d5 {[%emt 0:00:09]} 2. b3 {[%emt 0:00:38]} Bf5 {[%emt 0:02:20]} 3. Nh4 {[%emt 0:00:33]} Bc8 {[%emt 0:07:45]} 4. Nf3 {[%emt 0:00:02]} Bf5 {[%emt 0:05:13]} 5. Bb2 {[%emt 0:01:36]} e6 {[%emt 0:00:33]} 6. g3 {[%emt 0:00:18]} h6 {[%emt 0:01:03]} 7. Bg2 {[%emt 0:00:05]} Nf6 {[%emt 0:00:10]} 8. O-O {[%emt 0:00:18]} Be7 {[%emt 0:00:44]} 9. c4 {[%emt 0:00:28]} c6 {[%emt 0:01:29]} 10. d3 {[%emt 0:00:08]} O-O {[%emt 0:01:05]} 11. Nbd2 {[%emt 0:00:03]} Nbd7 {[%emt 0:03:29]} 12. a3 {[%emt 0:00:48]} a5 {[%emt 0:00:20]} 13. Ra2 {[%emt 0:00:27] 13.Ne5 is the modern continuation.} Bh7 {[%emt 0:10:05]} 14. Qa1 {[%emt 0:00:47] A12: English Opening: 1...c6 with b3 by White.} b5 {[%emt 0:01:22]} 15. Ne5 {[%emt 0:04:54]} Nxe5 {[%emt 0:05:17]} 16. Bxe5 {[%emt 0:00:03] White has an edge.} Qb6 {[%emt 0:03:36]} 17. cxb5 {[%emt 0:32:50]} cxb5 {[%emt 0:09:57]} 18. Bd4 {[%emt 0:00:21]} Qa6 {[%emt 0:03:10]} 19. Rc1 {[%emt 0:03:45]} Rfc8 {[%emt 0:02:27]} 20. a4 {[%emt 0:03:16]} b4 {[%emt 0:18:17]} 21. Rac2 {[%emt 0:02:00]} Ne8 {[%emt 0:04:17]} 22. Nf3 {[%emt 0:02:28]} Rxc2 {[%emt 0:04:41]} 23. Rxc2 {[%emt 0:00:03]} Rc8 {[%emt 0:00:20]} 24. Qc1 {[%emt 0:01:26]} Rxc2 {[%emt 0:00:23]} 25. Qxc2 {[%emt 0:00:03]} f6 {[%emt 0:00:40] [#] Against Ne5} 26. Bh3 $146 {[%emt 0:05:29][%cal Bg2h3,Bh3d7,Bd7b5][%mdl 32]} ({Predecessor:} 26. Nd2 Bg6 27. f4 Qb7 28. Nf3 Bd8 29. Qc1 Qc7 30. Qxc7 Bxc7 31. Kf2 Kf8 32. Ke3 Ke7 33. Bc5+ Kd7 34. Nd4 e5 35. fxe5 fxe5 36. Bh3+ {1-0 Spitzl,B (2158)-Gradl,W (2012) Landesliga Nord 0506 2005 (9.5)}) 26... Kf7 {[%emt 0:03:33]} 27. Be3 {[%emt 0:04:43] Nd4 is the strong threat.} e5 {[%emt 0:08:09] Prevents Nd4.} 28. Bd7 {[%emt 0:10:58]} d4 {[%emt 0:04:30]} 29. Bb5 {[%emt 0:00:23]} Qb6 {[%emt 0:02:48]} 30. Bc1 {[%emt 0:05:19]} (30. Qc8 Nd6 31. Bc4+ Nxc4 32. Qxc4+ Qe6 33. Qxe6+ Kxe6 $17) 30... Nd6 {[%emt 0:01:27]} 31. Bc6 {[%emt 0:00:27]} Bf5 {[%emt 0:02:37]} (31... Kf8 $5 {[%cal Rb6c7]}) 32. Bd5+ {[%emt 0:00:23]} Be6 {[%emt 0:01:11]} 33. Bxe6+ {[%emt 0:01:42]} Kxe6 {[%emt 0:00:01]} 34. Nd2 {[%emt 0:00:57]} f5 {[%emt 0:01:26]} 35. Bb2 {[%emt 0:00:35]} Bg5 {[%emt 0:01:10]} 36. Nc4 {[%emt 0:00:25]} Qc5 {[%emt 0:01:23]} 37. Qd1 {[%emt 0:00:58]} (37. h4 $5 {[%cal Rh4g5]} Bf6 38. h5 $15) 37... Nxc4 {[%emt 0:01:00]} 38. dxc4 $15 {[%emt 0:00:01][%mdl 4096] Endgame KQB-KQB} Bf6 {[%emt 0:00:25]} 39. Qd2 {[%emt 0:15:26]} e4 {[%emt 0:00:29]} 40. Kf1 {[%emt 0:00:42]} g5 {[%emt 0:00:32]} 41. Ke1 {[%emt 0:42:14]} (41. Qc1 $11) 41... Be5 {[%emt 0:10:03]} 42. Qc2 {[%emt 0:00:00]} (42. Kf1 $15) 42... h5 {[%emt 0:06:58]} (42... d3 $19 43. exd3 exd3) 43. Bc1 {[%emt 0:00:00]} Bf6 {[%emt 0:02:19] aiming for ...Qc6. Black is more active.} (43... Kf6 $5 {[%cal Rc5c6]}) 44. Qd1 {[%emt 0:00:00]} g4 {[%emt 0:09:37]} ({Black should try} 44... Qe5 $15) 45. Qd2 $1 $11 {[%emt 0:00:00] Qh6 would be deadly.} e3 {[%emt 0:04:03]} 46. fxe3 {[%emt 0:00:00]} Bg5 {[%emt 0:00:37][%cal Rg5e3]} 47. Qd3 {[%emt 0:00:00]} dxe3 {[%emt 0:00:38]} 48. Bb2 {[%emt 0:00:00]} h4 {[%emt 0:03:57]} 49. Qd4 {[%emt 0:00:00]} Qxd4 {[%emt 0:01:06]} 50. Bxd4 {[%emt 0:00:00] KB-KB} h3 {[%emt 0:05:02] And now ...f4 would win.} 51. Bb6 $2 {[%emt 0:00:00][%mdl 8192]} (51. Kf1 $11) 51... f4 $19 {[%emt 0:00:02][%cal Bf5f4,Bf4f3,Bf3e2][%mdl 32] ( -> ...fxg3)} 52. Kf1 {[%emt 0:00:00]} f3 $1 {[%emt 0:01:11]} ({Weaker is} 52... fxg3 53. hxg3 Kd7 54. Kg1 $11 (54. Bxa5 Be7 $11)) 53. Bxa5 {[%emt 0:00:00] [#]} fxe2+ $1 {[%emt 0:00:48]} 54. Kxe2 {[%emt 0:00:00] [#]} Bf4 $1 {[%emt 0:00:17][%cal Of4g3][%mdl 576] Threatens to win with ...Bxg3! Promotion} 55. Bxb4 {[%emt 0:04:03] [#]} (55. Bb6 Bxg3) 55... Bxg3 $1 {[%emt 0:00:02][%mdl 576] Promotion} 56. Bc5 {[%emt 0:00:01]} (56. Kxe3 Bh4) 56... Bf4 {[%emt 0:01:35] Black mates.} 57. Kf1 {[%emt 0:02:04]} g3 {[%emt 0:00:36]} ({Stronger than} 57... Bxh2 58. Bxe3 Kf5 59. a5 $11) 58. hxg3 {[%emt 0:01:42]} e2+ $1 {[%emt 0:00:16][%mdl 64] Promotion} 59. Kxe2 {[%emt 0:00:20]} h2 {[%emt 0:00:05]} (59... Bxg3 60. Kf3 Be1 61. b4 $18) 60. gxf4 {[%emt 0:00:01]} h1=Q {[%emt 0:00:06]} (60... h1=R $2 61. a5 Rh3 62. b4 $18) 61. Kd2 {[%emt 0:00:10]} Kf5 {[%emt 0:01:09]} 62. a5 {[%emt 0:00:12]} Qa1 {[%emt 0:00:25]} 63. Bb6 {[%emt 0:00:13]} Qb2+ {[%emt 0:00:57]} 64. Kd3 {[%emt 0:00:07]} Ke6 {[%emt 0:00:29]} 65. f5+ {[%emt 0:00:15]} Kxf5 {[%emt 0:00:12]} 66. Bc7 {[%emt 0:01:06]} Ke6 {[%emt 0:00:21] Weighted Error Value: White=0.50/Black=0.09 (flawless)} 0-1

[Event "4NCL 2022-2023"]
[Site "Daventry"]
[Date "2023.01.15"]
[Round "4.20"]
[White "Moreby, James"]
[Black "O'Donnell, Conor"]
[Result "1/2-1/2"]
[ECO "D02"]
[WhiteElo "2347"]
[BlackElo "2323"]
[Annotator "TA"]
[PlyCount "37"]
[EventDate "2022.10.20"]
[EventType "team-tourn"]
[EventCountry "ENG"]
[SourceTitle "playchess.com"]
[Source "ChessBase"]
[SourceQuality "1"]
[TimeControl "40/6000+30:2400+30"]

{[%evp 11,37,4,5,0,15,15,18,8,9,0,0,0,10,5,21,0,0,0,22,16,17,15,45,-22,-25,-22,0,0]} 1. Nf3 {[%emt 0:06:35]} d5 {[%emt 0:01:11]} 2. d4 {[%emt 0:00:11]} Nf6 {[%emt 0:00:25]} 3. Bf4 {[%emt 0:00:08]} c5 {[%emt 0:00:27]} 4. e3 {[%emt 0:00:18]} Nc6 {[%emt 0:01:25]} 5. Nbd2 {[%emt 0:00:25][%cal Bb1d2,Bd2f3,Bf3e5][%mdl 32]} Bg4 {[%emt 0:02:20]} 6. c3 {[%emt 0:02:04]} e6 {[%emt 0:10:41]} 7. Qa4 {[%emt 0:12:21] D02: 1 d4 d5 2 Nf3 sidelines, including 2...Nf6 3 g3 and 2...Nf6 3 Bf4.} Bxf3 {[%emt 0:12:56]} 8. Nxf3 {[%emt 0:03:18]} Qb6 {[%emt 0:06:04]} 9. Rb1 {[%emt 0:08:49]} Be7 {[%emt 0:02:58]} 10. Bd3 {[%emt 0:07:38]} O-O {[%emt 0:01:56] [#]} 11. Qd1 $146 {[%emt 0:06:35]} ({Predecessor:} 11. O-O Rfd8 12. Ne5 Rac8 13. h3 c4 14. Be2 Ne4 15. Qc2 f6 16. Nxc6 Qxc6 17. f3 {0-1 Pucelj,J-Mihalj,M JUG-ch M corr 1989}) 11... Rfc8 {[%emt 0:07:10]} 12. h4 {[%emt 0:02:34]} Qd8 {[%emt 0:06:48]} 13. Ne5 {[%emt 0:03:51]} c4 {[%emt 0:08:11]} 14. Bc2 {[%emt 0:00:46]} b5 {[%emt 0:00:38]} 15. g4 {[%emt 0:04:22] Black should prevent g5.} Nxe5 {[%emt 0:03:14]} 16. Bxe5 {[%emt 0:03:14]} Bd6 {[%emt 0:03:29]} 17. Bxd6 {[%emt 0:12:44]} (17. f4 $14) 17... Qxd6 $11 {[%emt 0:00:05]} 18. g5 {[%emt 0:00:35]} Nd7 {[%emt 0:07:18]} ({Don't take} 18... Ne4 19. Bxe4 dxe4 20. Qg4 $14) 19. f4 {[%emt 0:08:31] An uneventful encounter.   Weighted Error Value: White=0.13 (very precise) /Black=0.10 (very precise)} 1/2-1/2

[Event "4NCL 2022-2023"]
[Site "Daventry"]
[Date "2023.01.15"]
[Round "4.21"]
[White "Willow, Jonah B"]
[Black "Rendle, Thomas E"]
[Result "1-0"]
[ECO "C15"]
[WhiteElo "2431"]
[BlackElo "2388"]
[Annotator "TA"]
[PlyCount "65"]
[EventDate "2022.10.20"]
[EventType "team-tourn"]
[EventCountry "ENG"]
[SourceTitle "playchess.com"]
[Source "ChessBase"]
[SourceQuality "1"]
[TimeControl "40/6000+30:2400+30"]

{[%evp 18,65,-26,-24,8,-43,-34,-39,-29,-28,-21,-45,13,13,21,32,79,64,90,93,124,122,103,67,130,66,98,35,170,176,151,62,86,23,23,0,10,4,4,-230,-240,-238,-210,-219,684,674,661,658,633,620]} 1. e4 {[%emt 0:05:37]} e6 {[%emt 0:09:52]} 2. d4 {[%emt 0:00:06]} d5 {[%emt 0:00:08]} 3. Nc3 {[%emt 0:00:12]} Bb4 {[%emt 0:01:28]} 4. Nge2 {[%emt 0:00:54]} dxe4 {[%emt 0:00:51]} 5. a3 {[%emt 0:00:05]} Bxc3+ {[%emt 0:00:08]} 6. Nxc3 {[%emt 0:00:06]} Nc6 {[%emt 0:00:57]} 7. Bb5 {[%emt 0:00:32]} Nge7 {[%emt 0:00:44]} 8. Be3 {[%emt 0:00:05]} O-O {[%emt 0:01:49]} 9. Qd2 {[%emt 0:00:35] 9.Nxe4 injects fresh life into this line.} f5 {[%emt 0:02:47]} 10. O-O-O {[%emt 0:01:03]} Qd6 {[%emt 0:03:13] [#] ...f4 is the strong threat. C15: French: 3 Nc3 Bb4: Unusual White 4th moves.} 11. Bxc6 $146 {[%emt 0:05:13]} (11. Bf4 $11 Qd7 12. h4) ({Predecessor:} 11. Bf4 e5 12. dxe5 Qxd2+ 13. Rxd2 Be6 14. h4 a6 15. Bxc6 Nxc6 16. Ne2 Rad8 17. Rhd1 Rxd2 18. Rxd2 {½-½ Sorensen,H (2400)-Jogstad,M (2334) SWE-chB Helsingborg 2021 (4)}) 11... Qxc6 $15 {[%emt 0:06:01]} 12. h4 {[%emt 0:13:06]} Nd5 {[%emt 0:03:08] Black is slightly better.} 13. Nxd5 {[%emt 0:00:17]} Qxd5 {[%emt 0:06:19]} 14. Bf4 {[%emt 0:03:49] [#]} e5 {[%emt 0:09:48]} 15. Bxe5 $11 {[%emt 0:01:38]} f4 {[%emt 0:01:58]} 16. b3 {[%emt 0:27:15]} Bg4 {[%emt 0:15:02]} (16... a5 $14) 17. Rde1 $16 {[%emt 0:03:57]} Rad8 {[%emt 0:02:06]} 18. c4 {[%emt 0:04:50][%mdl 64] Deflection} Qd7 {[%emt 0:02:28]} 19. Rxe4 {[%emt 0:03:46]} (19. Bxf4 $6 Rxf4 20. Qxf4 Qxd4 $11) 19... b5 {[%emt 0:03:34]} 20. c5 {[%emt 0:14:15][%cal Of2f3] White is more active. Black is weak on the dark squares} (20. Bxf4 $6 bxc4 21. b4 (21. bxc4 $2 Bf5 $19) 21... Bh5 $11) 20... Be6 {[%emt 0:13:34]} (20... Qd5 $14 21. Rxf4 Bh5) 21. Rxf4 {[%emt 0:02:21]} (21. Bxc7 $1 $16 Bf5 22. Bxd8 (22. Rxf4 Qxc7 23. Re1 Qc6 $15) 22... Bxe4 23. Re1 Bxg2 24. Ba5) 21... a5 {[%emt 0:09:47]} 22. Rf3 {[%emt 0:06:59]} (22. Qxa5 $2 Rxf4 23. Qxc7 (23. Bxf4 $2 Qxd4 $19) 23... Rxd4 24. Qxd7 R4xd7 $19) ({White should play} 22. Rxf8+ $16 Rxf8 23. Re1 (23. Qxa5 Qd5 $16)) 22... a4 {[%emt 0:08:12]} (22... Rxf3 $14 23. gxf3 Qd5) 23. Rg3 $18 {[%emt 0:01:59]} Rf7 {[%emt 0:00:17] [#]} 24. Qh6 {[%emt 0:02:59]} (24. b4 $1 $16) 24... Bf5 {[%emt 0:00:58]} 25. h5 {[%emt 0:01:32]} ({Better is} 25. Qe3 $16) 25... axb3 $11 {[%emt 0:00:30]} 26. Rh4 {[%emt 0:05:32]} b4 {[%emt 0:00:58]} 27. a4 $36 {[%emt 0:01:02][%mdl 2048] Rf4 would be deadly. White has the initiative. Really sharp!} (27. axb4 Re8 28. c6 Qe7 $15) 27... Qe7 {[%emt 0:02:54] Strongly threatening ...Rxd4.} 28. Rf4 {[%emt 0:01:32] [#]} (28. Qg5 $11 {and White is okay.} Ra8 29. Qxe7 Rxe7 30. Rg5 (30. Rxb3 Rxa4 31. Rf4 Be6 $11)) 28... Rxd4 $3 $19 {[%emt 0:00:52][%mdl 576] Remove Defender} 29. Rxd4 {[%emt 0:01:15][%cal Od4d8] White wants to mate with Rd8+!} ({Avoid the trap} 29. Rxg7+ $2 Rxg7 30. Qxg7+ Qxg7 $19) 29... Qxc5+ {[%emt 0:00:48]} ({Worse is} 29... Qxe5 30. Qe3 Qxc5+ 31. Kd1 Qc2+ 32. Ke1 Qc3+ 33. Qxc3 bxc3 34. Rxc3 (34. Rd8+ $2 Rf8 $19)) 30. Kd2 {[%emt 0:00:18]} Qc2+ $4 {[%emt 0:00:58][%mdl 8192]} (30... Qxe5 $19 31. Qe3 Qxe3+ 32. Rxe3 b2 33. Rxb4 b1=Q 34. Rxb1 Bxb1) 31. Ke1 $18 {[%emt 0:00:14] Threatening mate with Rd8+. White is clearly winning.} Qb1+ {[%emt 0:02:56]} 32. Rd1 {[%emt 0:00:08][%cal Rg3g7]} Qe4+ {[%emt 0:00:21]} 33. Qe3 {[%emt 0:00:01] Weighted Error Value: White=0.35/Black=0.49} 1-0

[Event "4NCL 2022-2023"]
[Site "Daventry"]
[Date "2023.01.15"]
[Round "4.22"]
[White "Dong, Bao Nghia"]
[Black "Yao, Lan"]
[Result "1/2-1/2"]
[ECO "E18"]
[WhiteElo "2359"]
[BlackElo "2271"]
[Annotator "TA"]
[PlyCount "145"]
[EventDate "2022.10.20"]
[EventType "team-tourn"]
[EventCountry "ENG"]
[SourceTitle "playchess.com"]
[Source "ChessBase"]
[SourceQuality "1"]
[TimeControl "40/6000+30:2400+30"]

{[%evp 23,145,0,1,-12,8,12,8,0,16,-6,8,1,1,1,7,-46,-39,-58,-43,-40,-46,-85,-62,-85,-42,-95,-92,-89,-70,-70,-66,-70,-70,-68,-62,-70,-68,-70,-70,-67,0,-8,-11,-98,-8,-25,-22,-87,-90,-90,-87,-96,-89,-110,-79,-194,-184,-189,-87,-108,-120,-132,-85,-88,-81,-116,-134,-267,-266,-224,-87,-87,0,-23,-23,-23,-23,-42,0,0,0,0,0,0,0,0,0,0,0,0,0,-8,-8,-8,-8,-8,-8,-8,-8,-8,-8,-8,-8,-8,-8,-8,-8,-8,-8,-8,-8,-8,-8,-8,-8,-8,0,-8,0,0,0,-8,0,-8]} 1. Nf3 {[%emt 0:03:58]} Nf6 {[%emt 0:00:05]} 2. d4 {[%emt 0:00:06]} e6 {[%emt 0:00:12]} 3. c4 {[%emt 0:00:05]} b6 {[%emt 0:00:12]} 4. g3 {[%emt 0:00:06]} Bb7 {[%emt 0:00:05]} 5. Bg2 {[%emt 0:00:04]} Be7 {[%emt 0:00:09]} 6. O-O {[%emt 0:00:08]} O-O {[%emt 0:00:09]} 7. Nc3 {[%emt 0:02:56]} Ne4 {[%emt 0:00:08]} 8. Nxe4 {[%emt 0:04:07]} Bxe4 {[%emt 0:00:05]} 9. Ne1 {[%emt 0:00:03][%cal Bf3e1,Be1g2,Bg2f4][%mdl 32]} Bxg2 {[%emt 0:02:11]} 10. Nxg2 {[%emt 0:00:49]} d5 {[%emt 0:02:06]} 11. cxd5 {[%emt 0:00:32]} Qxd5 {[%emt 0:00:19]} 12. Nf4 {[%emt 0:02:29]} Qb7 {[%emt 0:07:59]} 13. Qb3 {[%emt 0:04:21] E18: Queen's Indian: Old Main Line (4 g3 Bb7 5 Bg2 Be7 6 0-0 0-0 7 Nc3).} c5 {[%emt 0:02:40]} 14. dxc5 {[%emt 0:00:33]} Bxc5 {[%emt 0:00:07] [#]} 15. Nd3 $146 {[%emt 0:00:02]} ({Predecessor:} 15. Be3) 15... Be7 {[%emt 0:01:05]} 16. Bd2 {[%emt 0:01:02]} Nd7 {[%emt 0:06:32]} 17. a4 {[%emt 0:00:20]} Qe4 {[%emt 0:12:42]} 18. Be3 {[%emt 0:04:16]} Nc5 {[%emt 0:06:43]} 19. Bxc5 {[%emt 0:03:32]} (19. Nxc5 $11 Bxc5 20. Bxc5 bxc5 21. Rfc1) 19... bxc5 $15 {[%emt 0:03:37]} 20. Rac1 {[%emt 0:06:16]} Qxe2 {[%emt 0:08:04]} 21. Rfe1 {[%emt 0:11:51]} Qd2 {[%emt 0:55:50]} 22. Rcd1 {[%emt 0:07:14]} Qa5 {[%emt 0:00:00]} 23. Ne5 {[%emt 0:01:22]} Qb4 {[%emt 0:00:00]} 24. Qe3 {[%emt 0:12:36]} ({Better is} 24. Qxb4 $15 cxb4 25. Nc6) 24... Qxa4 $17 {[%emt 0:00:00]} 25. Rd7 {[%emt 0:01:59]} Rae8 {[%emt 0:00:00]} 26. b3 {[%emt 0:01:11]} Qa6 {[%emt 0:00:00]} 27. Qc3 {[%emt 0:09:23]} Qb6 {[%emt 0:00:00]} 28. Qf3 {[%emt 0:02:16]} Bf6 {[%emt 0:00:00]} 29. Rb7 $1 {[%emt 0:01:48]} Qa5 {[%emt 0:00:00]} 30. b4 {[%emt 0:00:16]} cxb4 {[%emt 0:00:00]} 31. Nd7 {[%emt 0:00:06][%csl LRf6,LRf8] [#]} Bd4 {[%emt 0:01:53]} 32. Nxf8 {[%emt 0:01:04]} Rxf8 {[%emt 0:00:01]} 33. Rd1 {[%emt 0:04:48]} (33. Rc1 $1 $11) 33... e5 {[%emt 0:00:29]} ({Black should try} 33... Qc5 $1 $17 34. Qe2 h6) 34. Qb3 {[%emt 0:00:09]} Qc5 {[%emt 0:01:21] ...a5 is the strong threat.} 35. Rxb4 {[%emt 0:01:26]} (35. Qxb4 $11 {remains equal.} Bxf2+ 36. Kg2) 35... Bxf2+ {[%emt 0:00:17]} 36. Kg2 {[%emt 0:00:10]} Bd4 {[%emt 0:00:07]} 37. Rf1 {[%emt 0:00:25]} Qc6+ {[%emt 0:00:45]} 38. Rf3 {[%emt 0:07:14][%cal Ob3f7] White wants to mate with Qxf7+!} Bb6 {[%emt 0:01:20]} 39. Rb5 {[%emt 0:13:44]} (39. Qc4 $17 Qxc4 40. Rxc4) 39... e4 $1 $19 {[%emt 0:01:07]} (39... Qc1 40. Rxe5 Qd2+ 41. Kf1 Qc1+ 42. Re1 $11) 40. Rc3 {[%emt 0:00:08]} Qd7 {[%emt 0:01:17]} (40... Qf6 $19 {has better winning chances. Strongly threatening ...Qf2+.} 41. Rc2 Rd8) 41. Rd5 {[%emt 0:45:21]} Qe7 {[%emt 0:00:00]} 42. Qb5 {[%emt 0:00:00] [#]} e3 {[%emt 0:00:06]} (42... g6 $142 $1 43. Re5 Qf6) 43. Re5 $17 {[%emt 0:00:00]} Qd6 {[%emt 0:03:22]} 44. Rd3 {[%emt 0:00:00] Against Qd2+} Qf6 {[%emt 0:01:53]} 45. Rd7 {[%emt 0:00:00]} (45. Rf5 $17 {was called for.} Qa1 46. Rdd5) 45... g6 $19 {[%emt 0:02:30][%cal Oa7a6] White must now prevent ...a6!} 46. Ree7 {[%emt 0:00:00] [#]} h5 {[%emt 0:03:24]} (46... Qf2+ $1 $19 {is more deadly.} 47. Kh3 Qf3) 47. Qf1 $17 {[%emt 0:00:00]} Qxf1+ {[%emt 0:12:15]} ({Black should play} 47... Qb2+ $17 48. Kh3 Qf2 49. Qxf2 exf2) 48. Kxf1 {[%emt 0:00:00][%mdl 4096] Endgame KRR-KRB} Bc5 {[%emt 0:00:08]} 49. Re5 {[%emt 0:00:00]} Rc8 {[%emt 0:00:12]} 50. Ke2 {[%emt 0:00:00]} Bb6 {[%emt 0:00:39] And now ...Rc2+ would win.} 51. Kd1 {[%emt 0:00:00] Dodges Rc2. The position is equal.} Rc6 {[%emt 0:01:05]} 52. Re4 {[%emt 0:00:00]} Rf6 {[%emt 0:05:49] Hoping for ...Rf1+.} 53. Rf4 {[%emt 0:00:00] Repels Rf1+} Rxf4 {[%emt 0:03:09]} (53... Re6 $5 54. Ke2 $8 (54. Rfxf7 e2+ 55. Ke1 Ba5+ 56. Kf2 e1=Q+ 57. Kg2 Re2+ 58. Kh3 Qg1 59. Rg7+ Kf8 60. Rgf7+ Ke8 61. Kh4 Bd8+ {[%mdl 64] Deflection} 62. Rxd8+ Kxf7 63. Rd7+ Kf6 64. Rd6+ Kg7 65. Rd7+ Kh6) 54... Rc6 55. Rfxf7 Rc2+ 56. Kd3 (56. Ke1 $2 Ba5+ 57. Kd1 e2+ 58. Kxc2 e1=Q $19) 56... Rd2+ 57. Kc4 e2 58. Rg7+ Kf8 59. Rgf7+ Kg8 60. Rg7+ Kh8 61. Rh7+ (61. Rde7 e1=B $11) 61... Kg8 62. Rhg7+ $11) 54. gxf4 $11 {[%emt 0:00:00] KR-KB} Kg7 {[%emt 0:00:05]} 55. Ke2 {[%emt 0:00:00]} Kf6 {[%emt 0:00:03]} 56. Kf3 {[%emt 0:00:00]} Ke6 {[%emt 0:00:06]} 57. Rb7 {[%emt 0:00:00]} f6 {[%emt 0:00:45]} 58. h4 {[%emt 0:00:00]} Kf5 {[%emt 0:02:55]} 59. Rf7 {[%emt 0:00:00]} Bc5 {[%emt 0:05:40]} 60. Rc7 {[%emt 0:00:00]} Bd6 {[%emt 0:02:47][%csl LRc7,LRf4]} 61. Rxa7 {[%emt 0:00:00]} Bxf4 {[%emt 0:00:07]} 62. Ra5+ {[%emt 0:00:00]} Be5 {[%emt 0:00:01]} 63. Ra4 {[%emt 0:00:00]} g5 {[%emt 0:01:18]} 64. hxg5 {[%emt 0:00:00]} fxg5 {[%emt 0:00:02] ...Bf4 would be deadly.} 65. Kxe3 {[%emt 0:00:00]} (65. Ra5 {seems wilder.} h4 66. Kxe3 g4 67. Kf2) 65... Bf4+ {[%emt 0:00:49]} 66. Kf2 {[%emt 0:00:00]} g4 {[%emt 0:00:21]} 67. Ra5+ {[%emt 0:00:00]} Be5 {[%emt 0:02:20]} 68. Ra4 {[%emt 0:00:00]} Kg5 {[%emt 0:01:08]} (68... h4 {looks sharper.} 69. Rb4 h3 70. Kg1 Bf4) 69. Kg2 {[%emt 0:00:00]} Kf5 {[%emt 0:00:36]} 70. Rb4 {[%emt 0:00:00]} Bf4 {[%emt 0:01:14]} 71. Rb5+ {[%emt 0:00:00]} Be5 {[%emt 0:00:11]} 72. Rb4 $1 {[%emt 0:00:00]} Kg5 {[%emt 0:00:09]} (72... h4 $5 {[%cal Rh4h3]}) 73. Ra4 {[%emt 0:00:00] Black had all chances to win.   Weighted Error Value: White=0.19 (very precise) /Black=0.19 (very precise)} 1/2-1/2